bitfinex/quotes_BTCUSD_20250324
["timestamp","ask_amount","ask_price","bid_price","bid_amount"]
[1742781900091,0.00012392,85807.0,85806.0,0.53970777]
[1742781900291,0.00012392,85807.0,85806.0,0.54470777]
[1742781902255,0.00012392,85807.0,85806.0,0.55070777]
[1742781902459,0.00012392,85807.0,85806.0,0.51425288]
[1742781906402,0.00012392,85807.0,85806.0,0.50825288]
[1742781906591,0.00012392,85807.0,85806.0,0.50325288]
[1742781907034,0.00012324,85807.0,85806.0,0.50925288]
[1742781907259,0.0003388,85808.0,85806.0,0.50925288]
[1742781907260,7.2e-07,85808.0,85807.0,0.15439485]
[1742781907507,4.856e-05,85808.0,85807.0,0.4101399]
[1742781907711,0.0003388,85848.0,85838.0,0.244646]
[1742781907915,0.0003388,85848.0,85847.0,0.232972]
[1742781908117,0.0003388,85848.0,85847.0,0.35254703]
[1742781908322,0.00038667,85848.0,85847.0,0.36419503]
[1742781909561,0.01208777,85848.0,85847.0,0.36519503]
[1742781910162,0.00038667,85848.0,85847.0,0.36519503]
[1742781910602,0.00038667,85848.0,85847.0,0.36619503]
[1742781911205,0.00038667,85848.0,85847.0,0.12157503]
[1742781911444,0.00038667,85848.0,85847.0,0.001]
[1742781911645,0.07948667,85848.0,85847.0,0.13384]
[1742781912044,0.07948667,85848.0,85847.0,0.13484]
[1742781912247,0.00038667,85848.0,85847.0,0.012648]
[1742781912473,0.00038667,85848.0,85847.0,0.26602303]
[1742781912621,0.00038667,85848.0,85847.0,0.26802303]
[1742781917524,0.00038667,85848.0,85847.0,0.26602303]
[1742781917949,0.00038667,85848.0,85847.0,0.26802303]
[1742781918174,0.00038667,85848.0,85847.0,0.26702303]
[1742781918460,0.00038667,85848.0,85847.0,0.26902303]
[1742781920724,0.00038667,85848.0,85847.0,0.26702303]
[1742781921025,0.00038667,85848.0,85847.0,0.27002303]
[1742781921964,0.00038667,85848.0,85847.0,0.26802303]
[1742781922468,0.00038667,85848.0,85847.0,0.27002303]
[1742781922911,0.00038667,85848.0,85847.0,0.26802303]
[1742781923093,0.00038667,85848.0,85847.0,0.27102303]
[1742781929996,0.00038667,85848.0,85847.0,0.26802303]
[1742781930170,0.00038667,85848.0,85847.0,0.27302303]
[1742781930773,0.00038667,85848.0,85847.0,0.27002303]
[1742781930976,0.00038667,85848.0,85847.0,0.87794303]
[1742781933778,0.00038667,85848.0,85847.0,0.89248388]
[1742781935517,0.00038667,85848.0,85847.0,0.88448388]
[1742781935704,0.00038667,85848.0,85847.0,0.88848388]
[1742781935939,0.00038667,85848.0,85847.0,0.89448388]
[1742781937396,0.00038667,85848.0,85847.0,0.97398388]
[1742781937542,0.00038667,85848.0,85847.0,1.01030307]
[1742781938451,0.00038667,85848.0,85847.0,1.00030307]
[1742781938854,0.00038667,85848.0,85847.0,1.01230307]
[1742781939056,0.00038667,85848.0,85847.0,0.79900307]
[1742781939292,0.00038667,85848.0,85847.0,0.93276307]
[1742781940931,0.00038667,85848.0,85847.0,1.01226307]
[1742781941097,0.00038667,85848.0,85847.0,1.01693107]
[1742781944267,0.00038667,85848.0,85847.0,1.01226307]
[1742781947554,0.00038667,85848.0,85847.0,0.93276307]
[1742781950849,0.00038667,85848.0,85847.0,1.01486307]
[1742781955292,6.7e-07,85848.0,85847.0,1.33986307]
[1742781955493,6.7e-07,85848.0,85847.0,1.34486307]
[1742781955850,6.7e-07,85848.0,85847.0,1.31986307]
[1742781956203,6.7e-07,85848.0,85847.0,1.31386307]
[1742781956533,6.7e-07,85848.0,85847.0,1.31986307]
[1742781957176,6.7e-07,85848.0,85847.0,1.31386307]
[1742781957478,6.7e-07,85848.0,85847.0,1.31986307]
[1742781957676,6.7e-07,85848.0,85847.0,1.31386307]
[1742781958346,6.7e-07,85848.0,85847.0,1.31986307]
[1742781959859,0.00017007,85848.0,85847.0,1.31986307]
[1742781961672,7e-08,85848.0,85847.0,1.31986307]
[1742781964278,7e-08,85848.0,85847.0,1.31386307]
[1742781964700,7e-08,85848.0,85847.0,1.31986307]
[1742781964918,7e-08,85848.0,85847.0,1.30786307]
[1742781965446,7e-08,85848.0,85847.0,1.31986307]
[1742781965618,7e-08,85848.0,85847.0,1.31386307]
[1742781965988,7e-08,85848.0,85847.0,1.31986307]
[1742781966187,7e-08,85848.0,85847.0,1.44276307]
[1742781966387,7e-08,85848.0,85847.0,1.46776307]
[1742781970199,4.7e-07,85854.0,85853.0,0.1279]
[1742781970412,4.7e-07,85854.0,85853.0,0.50894758]
[1742781970621,4.7e-07,85854.0,85853.0,0.54293807]
[1742781971048,4.7e-07,85854.0,85853.0,0.56117707]
[1742781971676,4.7e-07,85854.0,85853.0,0.56717707]
[1742781972139,4.7e-07,85854.0,85853.0,0.57604887]
[1742781973526,4.7e-07,85854.0,85853.0,0.58204887]
[1742781974261,4.7e-07,85854.0,85853.0,0.60541306]
[1742781975456,4.7e-07,85854.0,85853.0,0.90541306]
[1742781980584,4.7e-07,85854.0,85853.0,0.93041306]
[1742781984244,4.7e-07,85854.0,85853.0,0.93075166]
[1742781984445,0.00016977,85854.0,85853.0,0.93075166]
[1742781984660,7.7e-07,85854.0,85853.0,0.93075166]
[1742781984833,7.7e-07,85854.0,85853.0,1.00925166]
[1742781988617,7.7e-07,85854.0,85853.0,1.61397166]
[1742781994188,7.7e-07,85854.0,85853.0,1.07369986]
[1742781994386,7.7e-07,85854.0,85853.0,1.21233986]
[1742781995533,7.7e-07,85854.0,85853.0,1.22107458]
[1742781997869,7.7e-07,85854.0,85853.0,1.05546086]
[1742781998072,7.7e-07,85854.0,85853.0,1.18910086]
[1742782005915,7.7e-07,85854.0,85853.0,1.05546086]
[1742782006110,7.7e-07,85854.0,85853.0,1.13828082]
[1742782006111,0.08190077,85854.0,85853.0,1.13828082]
[1742782006350,0.08190077,85854.0,85853.0,0.86488389]
[1742782006656,0.08190077,85854.0,85853.0,0.99852389]
[1742782006881,0.32650077,85854.0,85853.0,0.99852389]
[1742782007001,0.32650077,85854.0,85853.0,0.99252389]
[1742782007002,0.34163777,85854.0,85853.0,0.99252389]
[1742782007209,0.34163777,85854.0,85853.0,0.99852389]
[1742782007410,0.34163777,85854.0,85853.0,0.26012389]
[1742782007616,0.69043777,85854.0,85853.0,0.72194467]
[1742782007835,0.64163777,85854.0,85853.0,0.61594467]
[1742782008003,0.69138068,85854.0,85853.0,0.61594467]
[1742782008205,0.544617,85848.0,85847.0,0.1339788]
[1742782008411,0.626517,85848.0,85847.0,0.1339788]
[1742782008612,0.64133449,85848.0,85847.0,0.1339788]
[1742782008808,0.65319516,85848.0,85847.0,0.1339788]
[1742782009276,0.40857816,85848.0,85847.0,0.1339788]
[1742782009485,0.42022616,85848.0,85847.0,0.1339788]
[1742782009674,0.42022616,85848.0,85847.0,0.1349788]
[1742782009834,0.09671749,85848.0,85847.0,0.1349788]
[1742782010045,0.01481749,85848.0,85847.0,0.51371468]
[1742782010480,0.01824368,85854.0,85848.0,0.244615]
[1742782010674,0.01824368,85854.0,85849.0,0.11957503]
[1742782010877,0.02403195,85853.0,85849.0,0.11957503]
[1742782011116,0.011648,85851.0,85850.0,0.13364]
[1742782011514,0.02401235,85851.0,85850.0,0.13364]
[1742782012104,0.01236435,85851.0,85850.0,0.13364]
[1742782012472,7.7e-07,85854.0,85850.0,0.13364]
[1742782012681,0.01237206,85851.0,85850.0,0.13564]
[1742782012880,0.011648,85851.0,85850.0,0.13564]
[1742782013179,0.02401576,85851.0,85850.0,0.13564]
[1742782013837,0.02401576,85851.0,85850.0,0.13864]
[1742782014479,0.01236776,85851.0,85850.0,0.13864]
[1742782014653,7.7e-07,85854.0,85850.0,0.13864]
[1742782014866,0.03061567,85851.0,85850.0,0.13864]
[1742782015564,0.03061567,85851.0,85850.0,0.13364]
[1742782015988,0.03061567,85851.0,85850.0,0.13464]
[1742782016199,0.03061567,85851.0,85850.0,0.13364]
[1742782017562,0.03061567,85851.0,85850.0,0.13664]
[1742782017768,0.03061567,85851.0,85850.0,0.13864]
[1742782018142,0.03061567,85851.0,85850.0,0.13564]
[1742782018286,0.03061567,85851.0,85850.0,0.13864]
[1742782019411,0.03061567,85851.0,85850.0,0.74352]
[1742782020531,0.03061567,85851.0,85850.0,0.976484]
[1742782021404,0.03061567,85851.0,85850.0,0.9768228]
[1742782022127,0.03061567,85851.0,85850.0,0.7438588]
[1742782022713,0.04226367,85851.0,85850.0,0.7438588]
[1742782022940,0.03061567,85851.0,85850.0,0.7438588]
[1742782023147,0.03061567,85851.0,85850.0,0.9768228]
[1742782023525,0.03061567,85851.0,85850.0,0.7438588]
[1742782024456,0.03061567,85851.0,85850.0,0.87508183]
[1742782024605,0.01824283,85851.0,85850.0,0.87508183]
[1742782024861,7.7e-07,85854.0,85853.0,0.011647]
[1742782025013,7.7e-07,85854.0,85853.0,0.13122203]
[1742782025415,7.7e-07,85854.0,85853.0,0.36650746]
[1742782025617,7.7e-07,85854.0,85853.0,0.37871888]
[1742782026443,7.7e-07,85854.0,85853.0,0.38171888]
[1742782027701,7.7e-07,85854.0,85853.0,0.38671888]
[1742782029318,7.7e-07,85854.0,85853.0,0.41014691]
[1742782030691,7.7e-07,85854.0,85853.0,0.40514691]
[1742782031101,7.7e-07,85854.0,85853.0,0.41114691]
[1742782031466,7.7e-07,85854.0,85853.0,0.40514691]
[1742782031894,7.7e-07,85854.0,85853.0,0.54178691]
[1742782032056,7.7e-07,85854.0,85853.0,0.54578691]
[1742782032496,7.7e-07,85854.0,85853.0,0.54178691]
[1742782032724,7.7e-07,85854.0,85853.0,0.54578691]
[1742782033208,7.7e-07,85854.0,85853.0,0.62838691]
[1742782033417,7.7e-07,85854.0,85853.0,0.67428691]
[1742782034303,7.7e-07,85854.0,85853.0,0.66828691]
[1742782034527,7.7e-07,85854.0,85853.0,0.71059896]
[1742782034926,7.7e-07,85854.0,85853.0,0.70659896]
[1742782035135,7.7e-07,85854.0,85853.0,0.70559896]
[1742782035329,7.7e-07,85854.0,85853.0,0.67528691]
[1742782035532,7.7e-07,85854.0,85853.0,0.67028691]
[1742782035826,7.7e-07,85854.0,85853.0,0.67628691]
[1742782037247,7.7e-07,85854.0,85853.0,0.68822341]
[1742782038385,7.7e-07,85854.0,85853.0,0.68222341]
[1742782038593,7.7e-07,85854.0,85853.0,0.67622341]
[1742782038749,7.7e-07,85854.0,85853.0,0.68222341]
[1742782038957,7.7e-07,85854.0,85853.0,0.68822341]
[1742782039343,7.7e-07,85854.0,85853.0,0.68222341]
[1742782039518,7.7e-07,85854.0,85853.0,0.67628691]
[1742782039873,7.7e-07,85854.0,85853.0,0.67028691]
[1742782040277,7.7e-07,85854.0,85853.0,0.67628691]
[1742782044690,7.7e-07,85854.0,85853.0,0.67662571]
[1742782045175,7.7e-07,85854.0,85853.0,1.28138571]
[1742782047305,7.7e-07,85854.0,85853.0,1.32270102]
[1742782048740,7.7e-07,85854.0,85853.0,1.31766102]
[1742782049554,7.7e-07,85854.0,85853.0,1.32266102]
[1742782050737,7.7e-07,85854.0,85853.0,1.31666102]
[1742782051138,7.7e-07,85854.0,85853.0,1.64766102]
[1742782051983,7.7e-07,85854.0,85853.0,1.63566102]
[1742782052197,7.7e-07,85854.0,85853.0,1.64166102]
[1742782052510,7.7e-07,85854.0,85853.0,1.63566102]
[1742782052851,7.7e-07,85854.0,85853.0,1.64166102]
[1742782053501,7.7e-07,85854.0,85853.0,1.64766102]
[1742782053700,3e-08,85866.0,85865.0,0.38440985]
[1742782053912,0.001,85869.0,85868.0,0.24456]
[1742782054118,0.00104105,85869.0,85868.0,0.37867588]
[1742782054882,0.00104105,85869.0,85868.0,0.98339588]
[1742782055967,0.00104105,85869.0,85868.0,0.98939588]
[1742782056285,0.00104105,85869.0,85868.0,0.98339588]
[1742782056437,4.5e-07,85869.0,85868.0,0.98339588]
[1742782056638,4.5e-07,85869.0,85868.0,1.15988229]
[1742782056847,8.5e-07,85882.0,85881.0,0.373724]
[1742782057194,8.5e-07,85882.0,85881.0,0.64639988]
[1742782057398,8.5e-07,85884.0,85883.0,0.249517]
[1742782057573,8.5e-07,85884.0,85883.0,0.38363288]
[1742782058253,8.5e-07,85884.0,85883.0,0.39532546]
[1742782058892,8.5e-07,85884.0,85883.0,0.44272546]
[1742782059053,4.19e-05,85884.0,85883.0,0.44272546]
[1742782059449,4.19e-05,85884.0,85883.0,0.45372546]
[1742782059891,4.19e-05,85884.0,85883.0,0.44872546]
[1742782060115,4.19e-05,85884.0,85883.0,0.58824546]
[1742782060272,4.19e-05,85884.0,85883.0,0.45472546]
[1742782060476,4.19e-05,85884.0,85883.0,0.58824546]
[1742782061104,4.19e-05,85884.0,85883.0,0.58224546]
[1742782061843,4.19e-05,85884.0,85883.0,0.59951118]
[1742782061987,4.19e-05,85884.0,85883.0,0.59351118]
[1742782062343,4.19e-05,85884.0,85883.0,0.59951118]
[1742782063121,4.19e-05,85884.0,85883.0,0.46599118]
[1742782063314,4.19e-05,85884.0,85883.0,0.59951118]
[1742782064022,0.011639,85913.0,85883.0,0.59951118]
[1742782064023,0.0001694,85925.0,85924.0,0.011638]
[1742782064242,0.0001694,85925.0,85924.0,0.73812]
[1742782064438,0.02250997,85925.0,85924.0,0.73812]
[1742782064654,0.01164,85909.0,85903.0,0.011641]
[1742782064854,0.232855,85891.0,85886.0,0.232866]
[1742782065057,0.011642,85892.0,85883.0,0.017643]
[1742782065058,0.244495,85892.0,85887.0,0.85769503]
[1742782065255,0.01048664,85890.0,85887.0,0.86933803]
[1742782065457,0.01044523,85891.0,85887.0,0.86933803]
[1742782065657,0.01823364,85891.0,85888.0,0.232858]
[1742782065873,0.01049574,85890.0,85888.0,0.35243303]
[1742782066281,0.011643,85888.0,85887.0,0.6076]
[1742782066482,0.244504,85888.0,85887.0,0.74112]
[1742782066657,0.25495407,85888.0,85887.0,0.7638662]
[1742782067076,0.01045007,85888.0,85887.0,0.7755092]
[1742782067285,0.09005007,85888.0,85887.0,0.7755092]
[1742782067500,0.091243,85888.0,85887.0,0.7608662]
[1742782068012,0.10313304,85888.0,85887.0,0.7608662]
[1742782068178,0.10313304,85888.0,85887.0,0.6273462]
[1742782068391,0.10313304,85888.0,85887.0,0.7608662]
[1742782068714,0.10330244,85888.0,85887.0,0.7638662]
[1742782069044,0.11366739,85888.0,85887.0,0.7638662]
[1742782069500,0.11366739,85888.0,85887.0,0.7658662]
[1742782071061,0.10202439,85888.0,85887.0,0.7658662]
[1742782072723,0.02242439,85888.0,85887.0,0.7658662]
[1742782073322,0.01053435,85888.0,85887.0,0.76356423]
[1742782073548,0.01053435,85888.0,85887.0,0.89708423]
[1742782074851,0.0001694,85888.0,85887.0,0.89408423]
[1742782075249,0.0001694,85888.0,85887.0,0.89508423]
[1742782075672,0.0001694,85888.0,85887.0,0.89408423]
[1742782075850,0.0001694,85888.0,85887.0,0.89808423]
[1742782077091,0.01055478,85888.0,85887.0,0.89808423]
[1742782077397,0.02878871,85888.0,85887.0,0.89808423]
[1742782078294,0.01840333,85888.0,85887.0,0.89808423]
[1742782078858,0.01840333,85888.0,85887.0,0.97958423]
[1742782079080,0.01840333,85888.0,85887.0,1.02738423]
[1742782079881,0.01840333,85888.0,85887.0,1.02538423]
[1742782080293,0.01840333,85888.0,85887.0,1.02938423]
[1742782080499,0.01840333,85888.0,85887.0,0.89220263]
[1742782080698,0.01840333,85888.0,85887.0,1.02172263]
[1742782080923,0.01840333,85888.0,85887.0,1.03072263]
[1742782081534,0.01840333,85888.0,85887.0,1.02572263]
[1742782081732,0.01840333,85888.0,85887.0,1.03172263]
[1742782082131,0.01840333,85888.0,85887.0,1.02772263]
[1742782082337,0.01840333,85888.0,85887.0,1.03272263]
[1742782089663,0.0001694,85888.0,85887.0,1.03272263]
[1742782095207,0.01840192,85888.0,85887.0,1.03272263]
[1742782096798,0.01840192,85888.0,85887.0,0.80605963]
[1742782097006,0.01840192,85888.0,85887.0,0.89173963]
[1742782097208,0.01840192,85888.0,85887.0,1.21884663]
[1742782098100,0.01840192,85888.0,85887.0,1.26574663]
[1742782098647,0.01840192,85888.0,85887.0,1.28028748]
[1742782098845,0.01840192,85888.0,85887.0,1.31662797]
[1742782099717,0.01840192,85888.0,85887.0,1.31162797]
[1742782099918,0.01840192,85888.0,85887.0,1.30562797]
[1742782100124,0.01840192,85888.0,85887.0,1.31062797]
[1742782100329,0.01840192,85888.0,85887.0,1.31662797]
[1742782100879,0.01840192,85888.0,85887.0,1.31062797]
[1742782101097,0.01840192,85888.0,85887.0,1.31662797]
[1742782101317,0.01840192,85888.0,85887.0,1.32162797]
[1742782101840,0.01159625,85910.0,85909.0,0.244444]
[1742782102040,0.00057971,85914.0,85913.0,0.011639]
[1742782102262,0.00057971,85914.0,85913.0,0.96860703]
[1742782102463,0.01197848,85914.0,85913.0,0.96860703]
[1742782102667,0.00057971,85914.0,85913.0,0.96860703]
[1742782103979,0.00057971,85914.0,85913.0,0.96960703]
[1742782104491,0.00057971,85914.0,85913.0,0.96860703]
[1742782104702,0.00057971,85914.0,85913.0,0.99307729]
[1742782106060,0.00057971,85914.0,85913.0,0.99607729]
[1742782106265,0.00057971,85914.0,85913.0,0.99507729]
[1742782106633,0.00057971,85914.0,85913.0,0.99907729]
[1742782107427,0.00057971,85914.0,85913.0,0.99507729]
[1742782107872,0.00057971,85914.0,85913.0,0.76955026]
[1742782108094,0.00057971,85914.0,85913.0,0.76655026]
[1742782108349,0.00057971,85914.0,85913.0,0.77818926]
[1742782108502,0.00057971,85914.0,85913.0,1.01398226]
[1742782109134,0.01880909,85914.0,85913.0,1.01398226]
[1742782109539,0.02939839,85914.0,85913.0,0.78114926]
[1742782110516,0.02939839,85914.0,85913.0,1.01394226]
[1742782110994,0.02939839,85914.0,85913.0,0.76951026]
[1742782111899,0.64922739,85914.0,85913.0,0.14144]
[1742782112039,0.01164,85907.0,85903.0,0.44141412]
[1742782112260,0.32860969,85914.0,85896.0,0.13344]
[1742782112261,0.544478,85897.0,85896.0,0.13344]
[1742782112698,0.55494773,85897.0,85896.0,0.13344]
[1742782114169,0.244504,85888.0,85887.0,0.0003384]
[1742782114366,0.244504,85888.0,85887.0,0.1337784]
[1742782114500,0.25492389,85888.0,85887.0,0.0003384]
[1742782114708,0.55492389,85888.0,85887.0,0.1337784]
[1742782115166,0.55492389,85888.0,85887.0,0.0003384]
[1742782115370,0.57356958,85888.0,85887.0,0.1337784]
[1742782115794,0.57356958,85888.0,85887.0,0.1377784]
[1742782116613,0.57356958,85888.0,85887.0,0.1378184]
[1742782117134,0.57356958,85888.0,85887.0,0.1428184]
[1742782117555,0.57356958,85888.0,85887.0,0.1338184]
[1742782118008,0.57356958,85888.0,85887.0,0.1388184]
[1742782121737,0.57356958,85888.0,85887.0,0.1368184]
[1742782121940,0.57356958,85888.0,85887.0,0.1338184]
[1742782122290,0.57356958,85888.0,85887.0,0.1368184]
[1742782122565,0.57356958,85888.0,85887.0,0.1358184]
[1742782122798,0.57356958,85888.0,85887.0,0.1368184]
[1742782125369,0.5553344,85888.0,85887.0,0.1368184]
[1742782128466,0.57356999,85888.0,85887.0,0.1368184]
[1742782129994,0.57356999,85888.0,85887.0,0.0033384]
[1742782130364,0.72874345,85888.0,85887.0,0.0033384]
[1742782130567,0.72874345,85888.0,85887.0,4e-07]
[1742782130696,0.75374345,85888.0,85887.0,4e-07]
[1742782131503,0.75374345,85888.0,85872.0,0.13348]
[1742782131504,0.544547,85873.0,85872.0,0.13348]
[1742782131910,0.544547,85873.0,85865.0,0.60472]
[1742782131911,0.544567,85866.0,85865.0,0.60472]
[1742782132143,0.544567,85866.0,85865.0,0.7382]
[1742782132322,0.56665954,85866.0,85865.0,0.7382]
[1742782133290,0.56665954,85866.0,85865.0,0.7412]
[1742782133926,0.57522817,85866.0,85865.0,0.7412]
[1742782134881,0.59346787,85866.0,85865.0,0.60772]
[1742782135062,0.59346787,85866.0,85865.0,0.7452]
[1742782135307,0.59346787,85866.0,85865.0,0.7422]
[1742782135499,0.59346787,85866.0,85865.0,0.7452]
[1742782135644,0.59346787,85866.0,85865.0,0.7412]
[1742782136067,0.59346787,85866.0,85865.0,0.7452]
[1742782137306,0.34033224,85866.0,85865.0,0.756846]
[1742782137504,0.34033224,85866.0,85865.0,0.95452103]
[1742782137720,0.34033224,85866.0,85865.0,0.94287503]
[1742782137850,0.3300627,85866.0,85865.0,0.94287503]
[1742782138252,0.34033732,85866.0,85865.0,0.94287503]
[1742782138455,0.35198332,85866.0,85865.0,0.94287503]
[1742782139755,0.34033732,85866.0,85865.0,0.94321363]
[1742782140721,0.58490432,85866.0,85865.0,0.6120586]
[1742782140918,0.58490432,85866.0,85865.0,0.7455386]
[1742782141829,0.56666462,85866.0,85865.0,0.7455386]
[1742782143546,0.32209762,85866.0,85865.0,0.7455386]
[1742782144060,0.33374362,85866.0,85865.0,0.7455386]
[1742782144882,0.3519839,85866.0,85865.0,0.7455386]
[1742782149359,0.3519839,85866.0,85865.0,0.8206386]
[1742782150910,0.3403379,85866.0,85865.0,0.8206386]
[1742782153823,0.3519839,85866.0,85865.0,0.8206386]
[1742782155595,0.33374362,85866.0,85865.0,0.8206386]
[1742782158572,0.34033758,85866.0,85865.0,0.8206386]
[1742782158798,0.34033758,85866.0,85865.0,0.8661386]
[1742782163667,0.34033758,85866.0,85865.0,0.7910386]
[1742782163668,0.35198358,85866.0,85865.0,0.7910386]
[1742782165975,0.35198358,85866.0,85865.0,0.1863186]
[1742782168202,0.33374362,85866.0,85865.0,0.1863186]
[1742782171134,0.35198332,85866.0,85865.0,0.1863186]
[1742782171738,0.33374362,85866.0,85865.0,0.1408186]
[1742782172926,0.33374362,85866.0,85865.0,0.0073386]
[1742782174216,0.33374362,85866.0,85865.0,0.0033386]
[1742782174622,0.33374362,85866.0,85865.0,0.0063386]
[1742782174833,0.35198419,85866.0,85865.0,0.0033386]
[1742782175003,0.35198419,85866.0,85865.0,0.0023386]
[1742782175421,0.35198419,85866.0,85865.0,0.0003386]
[1742782175625,0.35198419,85866.0,85865.0,0.0023386]
[1742782176024,0.35198419,85866.0,85865.0,0.0043386]
[1742782183240,0.35198419,85866.0,85865.0,0.1377786]
[1742782184135,0.33374362,85866.0,85865.0,0.1377786]
[1742782187182,0.35198413,85866.0,85865.0,0.1377786]
[1742782188591,0.35198413,85866.0,85865.0,0.16078976]
[1742782188967,0.35198413,85866.0,85865.0,0.1377786]
[1742782195822,0.33374362,85866.0,85865.0,0.1377786]
[1742782198938,0.35198414,85866.0,85865.0,0.1377786]
[1742782200584,0.34033814,85866.0,85865.0,0.1494246]
[1742782200921,0.34033814,85866.0,85865.0,0.1949246]
[1742782202006,0.34033814,85866.0,85865.0,0.1832786]
[1742782202434,0.35198414,85866.0,85865.0,0.1832786]
[1742782203956,0.35198414,85866.0,85865.0,0.1832386]
[1742782204659,0.35198414,85866.0,85865.0,0.0498386]
[1742782204858,0.35198414,85866.0,85865.0,0.1832386]
[1742782206183,0.33374362,85866.0,85865.0,0.1832386]
[1742782209229,0.35198389,85866.0,85865.0,0.1832386]
[1742782212503,0.04033789,85866.0,85865.0,0.62238263]
[1742782212696,0.244538,85876.0,85870.0,0.232908]
[1742782212892,0.3,85875.0,85874.0,0.244543]
[1742782213226,0.30991913,85875.0,85872.0,0.232903]
[1742782213417,0.30991913,85875.0,85874.0,0.011644]
[1742782213862,0.00991913,85875.0,85874.0,0.011644]
[1742782214247,0.3,85879.0,85874.0,0.244541]
[1742782214397,0.0099547,85875.0,85874.0,0.244541]
[1742782214611,0.31162146,85879.0,85874.0,0.244541]
[1742782214815,0.0099547,85875.0,85874.0,0.244541]
[1742782215017,0.31162146,85879.0,85874.0,0.244541]
[1742782215218,0.0099547,85875.0,85874.0,0.244541]
[1742782215507,0.31162146,85879.0,85874.0,0.26792888]
[1742782215733,0.00995977,85875.0,85874.0,0.26792888]
[1742782215910,0.01823772,85878.0,85874.0,0.26792888]
[1742782216131,0.00995977,85875.0,85874.0,0.26892888]
[1742782216333,0.01823772,85878.0,85874.0,0.26892888]
[1742782216513,0.01823772,85878.0,85876.0,0.232892]
[1742782216893,0.01823772,85878.0,85877.0,0.13336]
[1742782218436,0.01823772,85878.0,85877.0,0.13536]
[1742782219062,0.02988172,85878.0,85877.0,0.13536]
[1742782219756,0.02988172,85878.0,85877.0,0.13636]
[1742782219956,0.02988172,85878.0,85877.0,0.003]
[1742782220758,0.48293308,85878.0,85877.0,0.003]
[1742782220984,0.544567,85866.0,85855.0,0.048]
[1742782221125,0.544567,85866.0,85857.0,0.13336]
[1742782221753,0.56280956,85866.0,85857.0,0.13336]
[1742782223152,0.56280956,85866.0,85855.0,0.048]
[1742782223351,0.56280956,85866.0,85865.0,0.0033386]
[1742782223800,0.56280956,85866.0,85865.0,0.0053386]
[1742782224200,0.57155743,85866.0,85865.0,0.0053386]
[1742782224760,0.57155743,85866.0,85865.0,0.0023386]
[1742782225899,0.57155743,85866.0,85865.0,0.0003386]
[1742782226322,0.57155743,85866.0,85865.0,0.0033386]
[1742782232116,0.58698767,85866.0,85865.0,0.0033386]
[1742782237603,0.58698767,85866.0,85865.0,0.0023386]
[1742782237807,0.58698767,85866.0,85865.0,0.0003386]
[1742782238669,0.58698767,85866.0,85865.0,0.0013386]
[1742782243879,0.6632527,85866.0,85865.0,0.0013386]
[1742782244049,0.7389527,85866.0,85865.0,6e-07]
[1742782244300,0.5446,85854.0,85853.0,0.0003388]
[1742782244500,0.63706889,85854.0,85853.0,0.0003388]
[1742782245121,0.544609,85851.0,85850.0,6e-07]
[1742782245482,0.63715249,85851.0,85850.0,6e-07]
[1742782245782,0.63715249,85851.0,85850.0,4.165e-05]
[1742782246146,0.65169334,85851.0,85850.0,4.165e-05]
[1742782246354,0.24464,85840.0,85839.0,0.0003386]
[1742782246540,0.74540964,85840.0,85839.0,6.5e-07]
[1742782246740,0.74540964,85840.0,85820.0,0.07448099]
[1742782246741,0.544695,85821.0,85820.0,0.07448099]
[1742782246942,0.55994471,85821.0,85820.0,0.07452886]
[1742782247246,0.55994471,85821.0,85820.0,4.787e-05]
[1742782247822,0.64823233,85821.0,85820.0,4.787e-05]
[1742782248199,0.64823233,85821.0,85820.0,0.00304787]
[1742782248405,0.64823233,85821.0,85820.0,0.00204787]
[1742782248566,0.66648517,85821.0,85820.0,0.00204787]
[1742782249612,0.66648517,85821.0,85820.0,4.787e-05]
[1742782249989,0.66648517,85821.0,85820.0,0.00304787]
[1742782250198,0.66648517,85821.0,85820.0,0.00104787]
[1742782250378,0.66648517,85821.0,85820.0,4.787e-05]
[1742782250998,0.64823233,85821.0,85820.0,4.787e-05]
[1742782252635,0.544706,85817.0,85810.0,0.0003386]
[1742782252769,0.62429592,85817.0,85810.0,0.0003386]
[1742782252969,0.63938354,85817.0,85810.0,0.0003386]
[1742782254455,0.65763803,85817.0,85810.0,0.0003386]
[1742782255096,0.65763803,85817.0,85816.0,0.003]
[1742782255590,0.57804811,85817.0,85816.0,0.003]
[1742782257735,0.57804811,85817.0,85816.0,0.0033388]
[1742782262379,0.65763803,85817.0,85816.0,0.0033388]
[1742782263408,0.65763803,85817.0,85816.0,0.0023388]
[1742782264669,0.65963803,85817.0,85816.0,0.0023388]
[1742782266639,0.58004811,85817.0,85816.0,0.0023388]
[1742782282079,0.56179362,85817.0,85816.0,0.0023388]
[1742782282497,0.56179362,85817.0,85816.0,0.0492388]
[1742782282689,0.56179362,85817.0,85816.0,0.1268388]
[1742782284919,0.58004777,85817.0,85816.0,0.1268388]
[1742782289494,0.03534177,85817.0,85816.0,0.1268388]
[1742782289721,0.02025415,85817.0,85816.0,0.25806583]
[1742782290079,0.0001694,85820.0,85819.0,0.2447]
[1742782290361,0.0001694,85820.0,85819.0,0.48877503]
[1742782290821,0.0001694,85820.0,85819.0,0.48777503]
[1742782291521,0.0001694,85820.0,85819.0,0.49177503]
[1742782292218,0.0001694,85820.0,85819.0,0.49077503]
[1742782293558,0.0001694,85820.0,85819.0,0.49577503]
[1742782295434,0.0001694,85820.0,85819.0,0.51878799]
[1742782301238,0.0001694,85820.0,85819.0,0.65210799]
[1742782304057,0.0001694,85820.0,85819.0,1.25726799]
[1742782304802,0.2448664,85820.0,85819.0,0.76167296]
[1742782304923,0.2600661,85820.0,85819.0,0.87194]
[1742782305129,0.5600661,85820.0,85819.0,0.79434]
[1742782305355,0.5600661,85820.0,85819.0,0.74744]
[1742782305562,0.57831789,85820.0,85819.0,0.74744]
[1742782305764,0.57831789,85820.0,85819.0,0.74244]
[1742782306445,0.57831789,85820.0,85819.0,0.73844]
[1742782306646,0.57831789,85820.0,85819.0,0.74744]
[1742782307050,0.57831789,85820.0,85819.0,0.74344]
[1742782307281,0.57831789,85820.0,85819.0,0.74644]
[1742782307991,0.57831789,85820.0,85819.0,0.74144]
[1742782308357,0.57831789,85820.0,85819.0,0.74444]
[1742782313500,0.57831789,85820.0,85819.0,0.61116]
[1742782313723,0.57831789,85820.0,85819.0,0.74444]
[1742782316520,0.57831789,85820.0,85819.0,0.61116]
[1742782316720,0.57831789,85820.0,85819.0,0.74444]
[1742782316920,0.5600661,85820.0,85819.0,0.006]
[1742782317734,0.5600661,85820.0,85819.0,0.0063386]
[1742782318128,0.5600661,85820.0,85819.0,0.0033386]
[1742782318527,0.5620661,85820.0,85819.0,0.0003386]
[1742782318962,0.5640661,85820.0,85819.0,0.0003386]
[1742782319931,0.5823195,85820.0,85819.0,0.0003386]
[1742782331555,0.5640661,85820.0,85819.0,0.0003386]
[1742782333270,0.5620661,85820.0,85819.0,0.0003386]
[1742782333470,0.5630661,85820.0,85819.0,0.0003386]
[1742782334140,0.5610661,85820.0,85819.0,0.0003386]
[1742782335663,0.5600661,85820.0,85819.0,0.0003386]